bitfinex-derivatives/quotes_BTCF0:USTF0_20241015
["timestamp","ask_amount","ask_price","bid_price","bid_amount"]
[1729009912034,0.0064,66696.0,66695.0,1.21138174]
[1729009912260,0.0064,66696.0,66695.0,1.29955091]
[1729009912435,0.0064,66696.0,66695.0,1.21138174]
[1729009913247,0.0064,66696.0,66695.0,1.29955091]
[1729009913449,0.0008,66706.0,66705.0,0.074968]
[1729009913663,0.0008,66706.0,66705.0,0.41957074]
[1729009913849,0.0008,66706.0,66705.0,1.55735766]
[1729009914235,0.0008,66706.0,66705.0,1.46929074]
[1729009914435,0.0008,66706.0,66705.0,1.55735766]
[1729009914639,0.0018,66706.0,66705.0,1.56535766]
[1729009914838,0.0018,66706.0,66705.0,1.47729074]
[1729009915348,0.0018,66706.0,66705.0,1.68979074]
[1729009916344,0.0018,66706.0,66705.0,1.7155373]
[1729009916648,0.0018,66706.0,66705.0,1.7295373]
[1729009917250,0.0018,66706.0,66705.0,1.70379074]
[1729009917443,0.0018,66706.0,66705.0,1.019588]
[1729009917643,0.0018,66706.0,66705.0,0.569868]
[1729009917945,0.0018,66706.0,66705.0,1.169868]
[1729009918150,0.3608,66715.0,66712.0,0.07496]
[1729009918343,0.3608,66716.0,66712.0,0.07536]
[1729009918741,0.02581193,66716.0,66712.0,0.07536]
[1729009918945,0.26,66714.0,66712.0,0.07536]
[1729009919151,0.6208,66714.0,66712.0,0.07536]
[1729009919451,0.0014,66713.0,66712.0,0.08836]
[1729009920139,0.0014,66713.0,66712.0,0.10236]
[1729009920949,0.076359,66713.0,66712.0,0.0274]
[1729009921166,0.295859,66713.0,66712.0,0.0274]
[1729009922252,0.656659,66713.0,66712.0,0.0274]
[1729009922654,0.437159,66713.0,66712.0,0.10236]
[1729009922860,0.3622,66713.0,66712.0,0.10236]
[1729009923064,0.3622,66713.0,66712.0,0.55204]
[1729009923263,0.3608,66723.0,66722.0,0.074949]
[1729009923454,0.3608,66723.0,66722.0,0.335349]
[1729009924053,0.3608,66723.0,66722.0,0.075349]
[1729009925061,0.074938,66732.0,66722.0,0.6212]
[1729009925257,0.26,66734.0,66731.0,0.0004]
[1729009925559,0.28612465,66734.0,66733.0,0.074936]
[1729009925761,0.36105965,66734.0,66733.0,0.074936]
[1729009925959,0.64692465,66734.0,66733.0,0.074936]
[1729009926160,0.3608,66743.0,66733.0,0.86]
[1729009926360,0.3608,66743.0,66731.0,0.0004]
[1729009926361,0.3608,66743.0,66742.0,0.335326]
[1729009926660,0.3608,66743.0,66742.0,0.075326]
[1729009926661,0.3874973,66743.0,66742.0,0.075326]
[1729009927963,0.3874973,66743.0,66742.0,0.089326]
[1729009929165,0.3874973,66743.0,66742.0,0.103326]
[1729009929360,0.3874973,66743.0,66742.0,0.0284]
[1729009929567,0.4624223,66743.0,66742.0,0.0284]
[1729009929956,0.4624223,66743.0,66742.0,0.103326]
[1729009930754,0.3874973,66743.0,66742.0,0.103326]
[1729009931168,0.3874973,66743.0,66742.0,0.363326]
[1729009931467,0.0266973,66743.0,66742.0,0.363326]
[1729009931653,0.074922,66746.0,66742.0,0.103326]
[1729009931966,0.435725,66743.0,66742.0,0.103326]
[1729009932359,0.3608,66743.0,66742.0,0.103326]
[1729009932555,0.3608,66743.0,66739.0,0.26]
[1729009932556,0.41466026,66743.0,66739.0,0.26]
[1729009932756,0.0004,66740.0,66739.0,0.334929]
[1729009933161,0.05386026,66740.0,66739.0,0.334929]
[1729009933664,0.05386026,66740.0,66739.0,0.088929]
[1729009933665,0.0004,66740.0,66739.0,0.088929]
[1729009933875,0.026933,66740.0,66739.0,0.088929]
[1729009934061,0.0004,66740.0,66739.0,0.088929]
[1729009934261,0.05277112,66740.0,66739.0,0.088929]
[1729009934661,0.0004,66740.0,66739.0,0.348929]
[1729009934866,0.0004,66740.0,66739.0,0.102929]
[1729009934867,0.3612,66740.0,66739.0,0.102929]
[1729009935170,0.4886416,66740.0,66739.0,0.102929]
[1729009935568,0.4137136,66740.0,66739.0,0.088929]
[1729009935865,0.4886416,66740.0,66739.0,0.102929]
[1729009936766,0.436128,66740.0,66739.0,0.102929]
[1729009937270,0.48850144,66740.0,66739.0,0.028]
[1729009938663,0.05277344,66740.0,66739.0,0.102929]
[1729009939167,0.05301937,66740.0,66739.0,0.102929]
[1729009939372,0.0004,66740.0,66739.0,0.102929]
[1729009939876,0.2101,66755.0,66753.0,0.074913]
[1729009940066,0.3608,66761.0,66754.0,0.2604]
[1729009940374,0.07491,66757.0,66756.0,0.074909]
[1729009941069,0.07491,66757.0,66754.0,0.0004]
[1729009941070,0.074911,66755.0,66754.0,0.0004]
[1729009941372,0.075311,66755.0,66754.0,0.0004]
[1729009942074,0.0004,66755.0,66754.0,0.696113]
[1729009942272,0.3608,66775.0,66768.0,0.074897]
[1729009942273,0.23706053,66769.0,66768.0,0.074897]
[1729009942462,0.02666053,66769.0,66768.0,0.075297]
[1729009942662,0.2075,66776.0,66768.0,0.0004]
[1729009942971,0.282388,66776.0,66775.0,0.0004]
[1729009943171,0.542388,66776.0,66775.0,0.0004]
[1729009943371,0.5689832,66776.0,66775.0,0.0004]
[1729009943979,0.5699832,66776.0,66775.0,0.0004]
[1729009944177,0.1024832,66776.0,66775.0,0.0004]
[1729009944373,0.1024832,66776.0,66775.0,0.075289]
[1729009945371,0.1014832,66776.0,66775.0,0.075289]
[1729009945677,0.0275952,66776.0,66775.0,0.089289]
[1729009945980,0.0275952,66776.0,66775.0,0.103289]
[1729009946974,0.1024832,66776.0,66775.0,0.0284]
[1729009947877,0.1024832,66776.0,66775.0,0.0144]
[1729009948178,0.1024832,66776.0,66775.0,0.0284]
[1729009948678,0.074896,66769.0,66768.0,0.0004]
[1729009948881,0.696096,66769.0,66768.0,0.0004]
[1729009949078,0.436096,66769.0,66768.0,0.075297]
[1729009949469,0.9612,66769.0,66754.0,0.36344673]
[1729009949780,0.696111,66755.0,66754.0,0.00264673]
[1729009949997,0.696111,66755.0,66754.0,0.0004]
[1729009950279,0.696111,66755.0,66754.0,0.335313]
[1729009950280,0.3612,66755.0,66754.0,0.335313]
[1729009950683,0.0004,66755.0,66754.0,0.335313]
[1729009950882,0.0004,66755.0,66754.0,0.935313]
[1729009951192,0.0004,66755.0,66754.0,0.936313]
[1729009951581,0.0004,66755.0,66754.0,0.336313]
[1729009951781,0.0134,66755.0,66754.0,0.337313]
[1729009952480,0.0004,66755.0,66754.0,0.336313]
[1729009952683,0.0144,66755.0,66754.0,0.076313]
[1729009952887,0.0144,66755.0,66754.0,0.075313]
[1729009953081,0.0284,66755.0,66754.0,0.075313]
[1729009953686,0.0284,66755.0,66754.0,0.0004]
[1729009953687,0.464111,66755.0,66754.0,0.0004]
[1729009954180,0.464111,66755.0,66734.0,0.26]
[1729009954181,0.074922,66746.0,66734.0,0.26]
[1729009954382,0.074925,66743.0,66736.0,0.2172]
[1729009954679,0.26,66745.0,66739.0,0.04377619]
[1729009954988,0.26,66745.0,66736.0,0.2172]
[1729009954989,0.3608,66740.0,66738.0,0.07493]
[1729009955173,0.3608,66740.0,66736.0,0.26097619]
[1729009955374,0.2604,66737.0,66735.0,0.04377619]
[1729009955573,0.074934,66735.0,66734.0,0.001]
[1729009955786,0.075334,66735.0,66734.0,0.001]
[1729009956281,0.0004,66735.0,66734.0,0.49510333]
[1729009956482,0.0004,66735.0,66734.0,0.436735]
[1729009957486,0.0144,66735.0,66734.0,0.437735]
[1729009957688,0.0144,66735.0,66734.0,0.436735]
[1729009958286,0.02557053,66752.0,66743.0,0.074925]
[1729009958484,0.02557053,66752.0,66751.0,0.074916]
[1729009958779,0.02557053,66752.0,66751.0,0.075316]
[1729009958980,0.3608,66764.0,66755.0,0.074911]
[1729009959184,0.3608,66764.0,66763.0,0.335303]
[1729009959383,0.0259129,66768.0,66767.0,0.074898]
[1729009959584,0.0008,66769.0,66768.0,0.074897]
[1729009960384,0.0008,66769.0,66768.0,0.11913612]
[1729009960586,0.0008,66769.0,66768.0,0.075297]
[1729009960995,0.0008,66769.0,66768.0,0.089297]
[1729009962081,0.0008,66769.0,66768.0,0.308197]
[1729009962975,0.0008,66769.0,66768.0,0.322197]
[1729009963380,0.0008,66769.0,66768.0,0.103297]
[1729009963582,0.0008,66769.0,66768.0,0.14714263]
[1729009963981,0.0008,66769.0,66768.0,0.103297]
[1729009964386,0.0008,66769.0,66768.0,0.16175278]
[1729009964578,0.0008,66769.0,66768.0,0.103297]
[1729009964783,0.0008,66769.0,66768.0,0.16174151]
[1729009965286,0.0008,66769.0,66768.0,0.103297]
[1729009965885,0.0008,66769.0,66768.0,0.16174151]
[1729009966293,0.0008,66769.0,66763.0,0.0004]
[1729009966294,1.745816,66769.0,66763.0,0.0004]
[1729009966482,0.335301,66764.0,66763.0,0.0004]
[1729009966677,0.074905,66761.0,66759.0,0.05835166]
[1729009966879,0.2604,66764.0,66757.0,0.05835166]
[1729009966880,0.0004,66760.0,66757.0,0.05835166]
[1729009967076,0.0004,66760.0,66759.0,0.13325866]
[1729009967287,0.0004,66760.0,66759.0,0.074907]
[1729009967976,0.0004,66760.0,66754.0,0.00224651]
[1729009967977,0.074907,66759.0,66757.0,0.05835166]
[1729009968280,0.075308,66758.0,66757.0,0.05835166]
[1729009968574,0.075308,66758.0,66756.0,0.07491]
[1729009968777,0.0004,66757.0,66756.0,0.07491]
[1729009969085,0.0004,66757.0,66756.0,0.14805258]
[1729009969284,0.0004,66757.0,66754.0,0.00224651]
[1729009969285,0.0004,66757.0,66755.0,0.07314258]
[1729009969492,0.07531,66756.0,66755.0,0.07314258]
[1729009969792,0.074911,66755.0,66754.0,0.07538909]
[1729009970088,0.075311,66755.0,66754.0,0.00224651]
[1729009971288,0.075311,66755.0,66754.0,0.07715951]
[1729009972094,0.089311,66755.0,66754.0,0.07815951]
[1729009972392,0.089311,66755.0,66754.0,0.00324651]
[1729009972577,0.0284,66755.0,66754.0,0.07915951]
[1729009972781,0.089311,66755.0,66754.0,0.00324651]
[1729009972977,0.089311,66755.0,66754.0,0.07915951]
[1729009972978,0.0284,66755.0,66754.0,0.07915951]
[1729009973184,0.0284,66755.0,66754.0,0.2343718]
[1729009973398,0.0284,66755.0,66754.0,0.23436867]
[1729009973582,0.0284,66755.0,66754.0,0.23433575]
[1729009973783,0.0144,66755.0,66754.0,0.23333575]
[1729009973992,0.0284,66755.0,66754.0,0.23433575]
[1729009974199,0.0284,66755.0,66754.0,0.16119317]
[1729009974489,0.0144,66755.0,66754.0,0.16019317]
[1729009974694,0.0284,66755.0,66754.0,0.23422005]
[1729009974891,0.0284,66755.0,66754.0,0.16119317]
[1729009975096,0.0004,66768.0,66763.0,0.074903]
[1729009975393,0.0004,66768.0,66763.0,0.2298358]
[1729009975595,0.3612,66768.0,66763.0,0.22983822]
[1729009975797,0.3612,66768.0,66763.0,0.15684713]
[1729009976388,0.0024,66764.0,66763.0,0.18284713]
[1729009976704,0.0024,66764.0,66763.0,0.25585661]
[1729009977197,0.0024,66764.0,66763.0,0.44284713]
[1729009977893,0.0014,66764.0,66763.0,0.348303]
[1729009978194,0.0014,66764.0,66763.0,0.18397662]
[1729009978391,0.0014,66764.0,66763.0,0.2569913]
[1729009978580,0.0004,66764.0,66763.0,0.17631768]
[1729009978784,0.0004,66764.0,66763.0,0.103303]
[1729009978986,0.0004,66764.0,66763.0,0.0284]
[1729009979183,0.075301,66764.0,66763.0,0.0284]
[1729009979586,0.0004,66764.0,66763.0,0.0284]
[1729009979802,0.0004,66764.0,66763.0,0.103303]
[1729009980096,0.0004,66764.0,66763.0,0.1850157]
[1729009980500,0.0004,66764.0,66763.0,0.25803284]
[1729009980898,0.0004,66764.0,66763.0,0.18497075]
[1729009981300,0.26,66764.0,66763.0,0.18497075]
[1729009981789,0.6208,66764.0,66763.0,0.103303]
[1729009981990,0.695701,66764.0,66763.0,0.0284]
[1729009982292,0.44936,66763.0,66755.0,0.07300515]
[1729009982495,1.2212,66764.0,66755.0,0.07300515]
[1729009982496,0.3612,66756.0,66755.0,0.074911]
[1729009983598,0.43611,66756.0,66755.0,0.074911]
[1729009983803,0.3622,66756.0,66755.0,0.075911]
[1729009984096,0.02815404,66756.0,66755.0,0.15747921]
[1729009984311,0.02815404,66756.0,66755.0,0.14896803]
[1729009984487,0.02815404,66756.0,66755.0,0.23058321]
[1729009984692,0.02815404,66756.0,66755.0,0.17052618]
[1729009985497,0.11706404,66756.0,66755.0,0.07510609]
[1729009985705,0.11706404,66756.0,66755.0,0.08368688]
[1729009985998,0.3612,66764.0,66755.0,0.08368688]
[1729009985999,0.0004,66764.0,66762.0,0.074904]
[1729009986196,1e-06,66768.0,66763.0,0.79932105]
[1729009986496,1e-06,66768.0,66767.0,0.075298]
[1729009986707,1e-06,66768.0,66767.0,0.25341905]
[1729009986902,1e-06,66768.0,66767.0,0.96273905]
[1729009987198,1e-06,66768.0,66767.0,0.51341905]
[1729009987900,1e-06,66769.0,66767.0,0.43852105]
[1729009988104,0.3608,66789.0,66778.0,0.074885]
[1729009988302,0.3608,66789.0,66785.0,0.40790222]
[1729009988597,0.3608,66789.0,66788.0,0.074874]
[1729009988794,0.3608,66789.0,66788.0,0.075274]
[1729009989191,0.38752831,66789.0,66788.0,0.075274]
[1729009989796,0.38852831,66789.0,66788.0,0.089274]
[1729009990001,0.38852831,66789.0,66788.0,0.0144]
[1729009990201,0.46340131,66789.0,66788.0,0.0144]
[1729009990401,1.13816131,66789.0,66788.0,0.0144]
[1729009990600,0.61412831,66789.0,66788.0,0.0144]
[1729009990797,0.61412831,66789.0,66788.0,0.349274]
[1729009990992,0.38852831,66789.0,66788.0,0.349274]
[1729009991395,0.38852831,66789.0,66788.0,0.363274]
[1729009992395,0.001,66789.0,66788.0,0.51732285]
[1729009992601,0.001,66789.0,66788.0,0.363274]
[1729009992806,0.3618,66789.0,66788.0,0.14701635]
[1729009993106,0.3618,66789.0,66788.0,0.0284]
[1729009993293,0.436673,66789.0,66788.0,0.0284]
[1729009994195,0.001,66789.0,66788.0,0.0284]
[1729009994506,0.0306927,66795.0,66794.0,0.074868]
[1729009994507,9.1e-07,66795.0,66794.0,0.074868]
[1729009994711,9.1e-07,66795.0,66794.0,0.696068]
[1729009994999,9.1e-07,66795.0,66794.0,0.6212]
[1729009995201,9.1e-07,66795.0,66794.0,0.696068]
[1729009995393,9.1e-07,66795.0,66794.0,2.365988]
[1729009995593,0.12315774,66800.0,66799.0,0.074862]
[1729009995797,0.12315774,66800.0,66799.0,0.335262]
[1729009996210,0.12239774,66800.0,66799.0,0.335262]
[1729009996397,0.12239774,66800.0,66799.0,0.935262]
[1729009996905,0.3608,66813.0,66800.0,0.074861]
[1729009997113,0.3608,66820.0,66817.0,0.074842]
[1729009997295,0.02561925,66820.0,66817.0,0.26]
[1729009997498,0.00224562,66824.0,66819.0,0.0004]
[1729009997706,0.00224562,66824.0,66823.0,0.0004]
[1729009997892,0.72382875,66824.0,66823.0,0.0004]
[1729009998098,1.77278875,66824.0,66823.0,0.0004]
[1729009998300,0.38899375,66824.0,66823.0,0.0004]
[1729009998605,0.72382775,66824.0,66823.0,0.0004]
[1729009998804,0.38899375,66824.0,66823.0,0.0144]
[1729009999101,0.02819375,66824.0,66823.0,0.0144]
[1729009999305,0.72382775,66824.0,66823.0,0.0284]
[1729009999496,0.074839,66820.0,66819.0,0.0004]
[1729009999693,0.335239,66820.0,66819.0,0.0004]
[1729009999892,0.335239,66820.0,66812.0,0.0004]
[1729009999893,0.074846,66813.0,66812.0,0.0004]
[1729010000098,0.074846,66813.0,66806.0,0.074854]
[1729010000099,0.6208,66813.0,66804.0,0.074856]
[1729010000298,0.074857,66804.0,66803.0,0.00224518]
[1729010000596,0.0004,66804.0,66794.0,0.0004]
[1729010000792,0.335261,66800.0,66794.0,0.0004]
[1729010001101,0.335261,66800.0,66796.0,0.074865]
[1729010001306,1.384381,66800.0,66796.0,0.074865]
[1729010001493,0.074866,66796.0,66794.0,0.0004]
[1729010001697,0.075267,66795.0,66794.0,0.075268]
[1729010001900,0.335267,66795.0,66794.0,0.0004]
[1729010002101,0.075267,66795.0,66794.0,0.075268]
[1729010002305,0.0004,66795.0,66794.0,0.075268]
[1729010002993,0.0134,66795.0,66794.0,0.076268]
[1729010003202,0.04008226,66795.0,66794.0,0.076268]
[1729010003507,0.0134,66795.0,66794.0,0.076268]
[1729010004506,0.0004,66795.0,66794.0,0.075268]
[1729010004708,0.0284,66795.0,66794.0,0.075268]
[1729010005309,0.0284,66795.0,66794.0,0.0004]
[1729010005500,0.0144,66795.0,66794.0,0.0004]
[1729010005710,0.0284,66795.0,66794.0,0.0004]
[1729010005901,0.6284,66795.0,66794.0,0.0004]
[1729010006211,0.0284,66795.0,66794.0,0.075268]
[1729010008209,0.0284,66795.0,66794.0,1.124388]
[1729010009115,0.0284,66795.0,66794.0,1.347988]
[1729010009417,0.0008,66800.0,66794.0,1.347988]
[1729010009418,0.0008,66800.0,66799.0,0.074862]
[1729010009620,0.0008,66800.0,66799.0,0.955662]
[1729010009919,0.0004,66805.0,66803.0,0.074858]
[1729010010108,0.0004,66805.0,66803.0,0.935258]
[1729010011218,0.0008,66820.0,66812.0,0.074848]
[1729010011422,0.0008,66820.0,66812.0,0.436048]
[1729010011623,0.0008,66820.0,66812.0,0.796848]
[1729010012427,0.0008,66820.0,66812.0,0.436048]
[1729010013727,0.0008,66820.0,66812.0,0.450048]
[1729010013934,0.0008,66820.0,66812.0,0.464048]
[1729010014325,0.0008,66820.0,66819.0,0.07484]
[1729010014526,0.0008,66820.0,66819.0,0.07524]
[1729010015835,0.675639,66820.0,66819.0,0.0014]
[1729010016036,1.124599,66820.0,66819.0,0.0014]
[1729010016337,0.074846,66813.0,66812.0,0.0014]
[1729010016536,0.696046,66813.0,66812.0,0.0014]
[1729010016832,1.6702,66813.0,66812.0,0.075248]
[1729010017033,0.0004,66813.0,66812.0,0.075248]
[1729010017242,0.436046,66813.0,66812.0,0.0004]
[1729010017737,0.3612,66813.0,66812.0,0.0004]
[1729010018035,0.3612,66813.0,66812.0,0.0024]
[1729010018036,0.436046,66813.0,66812.0,0.0024]
[1729010018231,0.664946,66813.0,66812.0,0.0024]
[1729010018541,0.664946,66813.0,66812.0,0.0004]
[1729010018722,0.664946,66813.0,66812.0,0.0024]
[1729010019132,0.5901,66813.0,66812.0,0.0024]
[1729010019436,0.5901,66813.0,66812.0,0.077248]
[1729010020139,0.664946,66813.0,66812.0,0.077248]
[1729010020332,0.664946,66813.0,66812.0,0.0074]
[1729010020333,0.7056274,66813.0,66812.0,0.0074]
[1729010020936,0.7056274,66813.0,66812.0,0.0014]
[1729010021133,0.6327814,66813.0,66812.0,0.077248]
[1729010021635,0.7056274,66813.0,66812.0,0.076248]
[1729010021940,0.3328274,66813.0,66812.0,0.076248]
[1729010022127,0.3468274,66813.0,66812.0,0.077248]
[1729010022329,0.2719814,66813.0,66812.0,0.077248]
[1729010022736,1.3209814,66813.0,66803.0,0.07315469]
[1729010023032,0.695657,66804.0,66803.0,0.075258]
[1729010023230,0.696057,66804.0,66803.0,0.075258]
[1729010023936,0.0004,66804.0,66803.0,0.075258]
[1729010024136,0.0004,66804.0,66803.0,0.336258]
[1729010024536,0.0084,66804.0,66803.0,0.337258]
[1729010024729,0.0084,66804.0,66803.0,0.336258]
[1729010024943,0.0094,66804.0,66803.0,0.337258]
[1729010025130,0.0094,66804.0,66803.0,0.077258]
[1729010026543,0.344257,66804.0,66803.0,0.077258]
[1729010026740,0.344257,66804.0,66803.0,0.0014]
[1729010026741,0.336257,66804.0,66803.0,0.0014]
[1729010027044,0.2714,66804.0,66803.0,0.0024]
[1729010027241,0.2714,66804.0,66803.0,0.077258]
[1729010027640,0.03737095,66804.0,66803.0,0.077258]
[1729010029343,0.03737095,66804.0,66803.0,0.41001269]
[1729010029746,0.03737095,66804.0,66803.0,0.23330192]
[1729010030040,0.03737095,66804.0,66803.0,0.16051806]
[1729010030237,0.0114,66804.0,66803.0,0.78131806]
[1729010030542,0.0012,66820.0,66812.0,0.074848]
[1729010030738,0.0012,66820.0,66812.0,0.335248]
[1729010031855,0.0012,66820.0,66819.0,0.07484]
[1729010032145,0.0012,66820.0,66819.0,0.50511586]
[1729010032343,0.3608,66836.0,66828.0,0.07483]
[1729010032540,0.3608,66829.0,66828.0,0.07483]
[1729010032745,0.3608,66829.0,66828.0,0.33483]
[1729010032938,0.3608,66830.0,66829.0,0.074829]
[1729010033144,0.3608,66830.0,66829.0,0.075229]
[1729010033538,0.3608,66836.0,66829.0,0.0004]
[1729010033737,0.435621,66836.0,66835.0,0.0004]
[1729010034346,0.435621,66836.0,66835.0,0.075222]
[1729010035048,0.435621,66836.0,66835.0,0.076222]
[1729010035243,0.074821,66836.0,66835.0,0.076222]
[1729010035746,0.72236,66837.0,66836.0,0.074821]
[1729010035949,0.74817462,66837.0,66836.0,0.075221]
[1729010036139,0.82299462,66837.0,66836.0,0.075221]
[1729010037147,0.74817462,66837.0,66836.0,0.076221]
[1729010039143,0.82299462,66837.0,66836.0,0.076221]
[1729010039348,0.82399462,66837.0,66836.0,0.077221]
[1729010039551,1.08399462,66837.0,66836.0,0.077221]
[1729010039948,1.08299462,66837.0,66836.0,0.076221]
[1729010040149,1.08399462,66837.0,66836.0,0.077221]
[1729010040446,1.08399462,66837.0,66836.0,0.0024]
[1729010040650,1.08399462,66837.0,66836.0,0.077221]
[1729010040860,1.08399462,66837.0,66836.0,0.0024]
[1729010041238,1.08399462,66837.0,66836.0,0.077221]
[1729010041648,0.82399462,66837.0,66836.0,0.077221]
[1729010042757,0.3618,66837.0,66836.0,0.337221]
[1729010042958,0.001,66837.0,66836.0,1.591061]
[1729010043454,0.001,66837.0,66836.0,1.813861]
[1729010043661,0.00645523,66841.0,66840.0,0.074816]
[1729010043959,0.00224499,66846.0,66845.0,0.074811]
[1729010044150,0.3608,66868.0,66867.0,0.074786]
[1729010044346,0.00076,66869.0,66868.0,0.074785]
[1729010044751,0.3608,66872.0,66871.0,0.074781]
[1729010044958,0.4156545,66872.0,66871.0,0.02141667]
[1729010045154,0.4160545,66872.0,66868.0,0.0004]
[1729010045360,0.0004,66872.0,66871.0,0.334781]
[1729010045953,0.0004,66872.0,66871.0,0.074781]
[1729010046259,0.0004,66872.0,66871.0,0.334781]
[1729010046749,0.0004,66872.0,66871.0,0.074781]
[1729010047150,0.0004,66872.0,66871.0,0.088781]
[1729010047347,0.0004,66872.0,66871.0,0.102781]
[1729010047552,1.30904,66872.0,66868.0,0.0004]
[1729010047756,1.056784,66869.0,66868.0,0.0004]
[1729010048762,1.056784,66869.0,66868.0,0.075185]
[1729010048763,0.722,66869.0,66868.0,0.075185]
[1729010049065,0.435984,66869.0,66868.0,0.0004]
[1729010049363,0.0004,66869.0,66868.0,0.075185]
[1729010049549,0.0004,66869.0,66868.0,0.336185]
[1729010050259,0.0014,66869.0,66868.0,0.349185]
[1729010050464,0.0024,66869.0,66868.0,0.585885]
[1729010050963,0.0144,66869.0,66868.0,0.790185]
[1729010051162,0.0134,66869.0,66868.0,0.776185]
[1729010051354,0.3882,66869.0,66868.0,0.776185]
[1729010052353,0.0274,66869.0,66868.0,1.824825]
[1729010052755,0.0134,66869.0,66868.0,0.776185]
[1729010052963,0.0254,66869.0,66868.0,0.777185]
[1729010053260,0.0124,66869.0,66868.0,1.824825]
[1729010053455,0.0004,66872.0,66868.0,1.825825]
[1729010053660,0.3870501,66882.0,66881.0,0.07477]
[1729010053860,0.3870501,66882.0,66881.0,0.07517]
[1729010054863,0.4618191,66882.0,66881.0,0.0004]
[1729010055062,0.3870501,66882.0,66881.0,0.07517]
[1729010056064,0.3870501,66882.0,66881.0,0.07617]
[1729010056065,0.3890501,66882.0,66881.0,0.07617]
[1729010056269,0.4638191,66882.0,66881.0,0.0014]
[1729010056458,0.4648191,66882.0,66881.0,0.0024]
[1729010056663,0.4648191,66882.0,66881.0,0.07717]
[1729010057965,0.4648191,66882.0,66871.0,0.075181]
[1729010057966,1.7733791,66882.0,66871.0,0.0004]
[1729010058168,0.33478,66872.0,66871.0,0.0004]
[1729010058562,0.0004,66872.0,66871.0,0.075182]
[1729010058969,0.33518,66872.0,66871.0,0.0004]
[1729010059166,0.93518,66872.0,66871.0,0.0014]
[1729010059674,0.33618,66872.0,66871.0,0.0024]
[1729010060469,0.33618,66872.0,66871.0,0.0014]
[1729010060675,0.3636098,66872.0,66871.0,0.0024]
[1729010061465,0.3636098,66872.0,66871.0,0.077182]
[1729010061964,0.3656098,66872.0,66871.0,0.077182]
[1729010062278,0.0328298,66872.0,66871.0,0.077182]
[1729010062466,0.0044,66872.0,66871.0,0.076182]
[1729010062771,0.0044,66872.0,66871.0,0.077182]
[1729010062772,0.0074,66872.0,66871.0,0.077182]
[1729010062971,0.0034,66872.0,66871.0,0.076182]
[1729010063174,0.0074,66872.0,66871.0,0.357182]
[1729010063476,0.0074,66872.0,66871.0,0.957182]
[1729010063975,0.0004,66882.0,66871.0,0.957182]
[1729010064173,0.0004,66882.0,66881.0,0.07477]
[1729010064473,0.0004,66882.0,66881.0,0.07517]
[1729010064672,0.3608,66893.0,66892.0,0.074758]
[1729010064979,0.435557,66893.0,66892.0,0.355158]
[1729010065273,0.435557,66893.0,66892.0,0.0004]
[1729010065574,0.46114908,66893.0,66892.0,0.0004]
[1729010065772,0.074769,66882.0,66881.0,0.0004]
[1729010065968,0.3612,66882.0,66881.0,0.2804]
[1729010066269,0.3612,66882.0,66881.0,0.35517]
[1729010067079,0.435969,66882.0,66881.0,0.0014]
[1729010067470,0.075169,66882.0,66881.0,0.00040329]
[1729010067677,0.12980551,66882.0,66881.0,0.00040329]
[1729010068366,0.12980551,66882.0,66881.0,0.00140329]
[1729010068567,0.12980551,66882.0,66881.0,0.001]
[1729010068773,0.12980551,66882.0,66881.0,0.002]
[1729010068971,0.02667648,66882.0,66881.0,0.07677]
[1729010069369,0.0008,66882.0,66881.0,0.07677]
[1729010070375,0.3608,66886.0,66881.0,0.3628]
[1729010070376,0.02645926,66886.0,66881.0,0.3628]
[1729010070568,0.074763,66888.0,66885.0,0.355166]
[1729010070768,0.074764,66887.0,66885.0,0.355166]
[1729010070968,0.074764,66887.0,66886.0,0.074765]
[1729010071272,0.074765,66886.0,66885.0,0.0004]
[1729010071476,0.12927443,66886.0,66885.0,0.0004]
[1729010071879,0.12967443,66886.0,66885.0,0.355166]
[1729010072580,0.05490943,66886.0,66885.0,0.355166]
[1729010072766,0.11841184,66886.0,66885.0,0.355166]
[1729010072965,0.11841184,66886.0,66885.0,0.356166]
[1729010073173,0.19325728,66886.0,66885.0,0.356166]
[1729010073373,0.05490943,66886.0,66885.0,0.355166]
[1729010073576,0.12967443,66886.0,66885.0,0.356166]
[1729010073775,0.12967443,66886.0,66885.0,0.0014]
[1729010073978,0.6180926,66886.0,66885.0,0.0014]
[1729010074182,0.3380926,66886.0,66885.0,0.0014]
[1729010074378,0.11931888,66886.0,66885.0,0.0024]
[1729010074676,0.074765,66886.0,66885.0,0.0024]
[1729010075070,0.074765,66886.0,66885.0,0.077166]
[1729010075880,0.074765,66886.0,66885.0,0.076166]
[1729010076076,0.074765,66886.0,66885.0,0.090166]
[1729010076470,0.3608,66893.0,66890.0,0.074758]
[1729010076471,0.074761,66891.0,66890.0,0.074758]
[1729010076676,0.074761,66891.0,66890.0,0.075158]
[1729010078082,0.074761,66891.0,66890.0,0.0004]
[1729010078383,0.074761,66891.0,66890.0,0.08916]
[1729010079092,0.074761,66891.0,66890.0,0.10316]
[1729010080477,0.074761,66891.0,66890.0,0.0284]
[1729010080681,1.123241,66891.0,66890.0,0.0284]
[1729010082281,1.123241,66891.0,66885.0,0.0004]
[1729010082282,0.074765,66886.0,66885.0,0.0004]
[1729010082493,0.77070528,66886.0,66870.0,0.26389822]
[1729010082683,0.355182,66871.0,66868.0,0.0004]
[1729010082883,0.075184,66869.0,66868.0,0.0004]
[1729010083085,0.20508928,66869.0,66868.0,0.0004]
[1729010083291,0.28689223,66869.0,66868.0,0.0004]
[1729010083590,0.88689223,66869.0,66868.0,0.0004]
[1729010083790,0.88130555,66869.0,66868.0,0.0004]
[1729010084287,0.92770693,66869.0,66868.0,0.0004]
[1729010084587,1.0136057,66869.0,66868.0,0.0004]
[1729010084790,0.44864,66868.0,66843.0,0.28]